fUSD/lending_fUSD_20240122
["ID","MTS","AMOUNT","RATE_DAILY","PERIOD"]
[312507056,1705935273074,-587.61,0.00056712,120]
[312507057,1705935273108,-500.0,0.00056712,120]
[312507058,1705935273143,-500.0,0.00056712,120]
[312507059,1705935273177,-882.35,0.00056712,120]
[312507060,1705935273213,-831.94,0.00056712,120]
[312507061,1705935273247,-1066.83,0.00056712,120]
[312507062,1705935273280,-506.4,0.00056712,120]
[312507063,1705935273313,-500.0,0.00056712,120]
[312507064,1705935273350,-500.0,0.00056712,120]
[312507065,1705935273384,-692.09,0.00056712,120]
[312507066,1705935273420,-500.0,0.00056712,120]
[312507067,1705935273455,-500.0,0.00056712,120]
[312507068,1705935273490,-548.63,0.00056712,120]
[312507069,1705935273523,-726.93,0.00056712,120]
[312507070,1705935273556,-500.0,0.00056712,120]
[312507071,1705935273589,-801.5,0.00056712,120]
[312507072,1705935273623,-533.44,0.00056712,120]
[312507073,1705935273662,-500.0,0.00056712,120]
[312507074,1705935273696,-500.0,0.00056712,120]
[312507075,1705935273731,-500.0,0.00056712,120]
[312507077,1705935273766,-500.0,0.00056712,120]
[312507078,1705935273803,-500.0,0.00056712,120]
[312507079,1705935273839,-500.0,0.00056712,120]
[312507080,1705935273876,-517.9,0.00056712,120]
[312507081,1705935273909,-500.0,0.00056712,120]
[312507082,1705935273949,-500.0,0.00056712,120]
[312507083,1705935273988,-500.0,0.00056712,120]
[312507084,1705935274027,-539.03,0.00056712,120]
[312507085,1705935274063,-500.0,0.00056712,120]
[312507086,1705935274098,-500.0,0.00056712,120]
[312507087,1705935274132,-500.0,0.00056712,120]
[312507088,1705935274165,-541.94,0.00056712,120]
[312507089,1705935274199,-500.0,0.00056712,120]
[312507090,1705935274234,-628.32,0.00056712,120]
[312507091,1705935274269,-388.6060313,0.00056712,120]
[312507092,1705935274302,-310.76662411,0.00056712,120]
[312507093,1705935274336,-1064.71,0.00056712,120]
[312507094,1705935274369,-596.41831204,0.00056712,120]
[312507095,1705935274403,-500.0,0.00056712,120]
[312507096,1705935274437,-500.0,0.00056712,120]
[312507097,1705935274469,-500.0,0.00056712,120]
[312507098,1705935274503,-500.0,0.00056712,120]
[312507099,1705935274537,-500.0,0.00056712,120]
[312507100,1705935274570,-500.0,0.00056712,120]
[312507101,1705935274763,-500.0,0.00056712,120]
[312507102,1705935274798,-688.57,0.00056712,120]
[312507103,1705935274831,-515.35,0.00056712,120]
[312507104,1705935274865,-500.0,0.00056712,120]
[312507105,1705935274898,-532.26,0.00056712,120]
[312507106,1705935274932,-500.0,0.00056712,120]
[312507107,1705935274968,-429.58,0.00056712,120]
[312507108,1705935275005,-500.0,0.00056712,120]
[312507109,1705935275041,-511.93,0.00056712,120]
[312507110,1705935275078,-852.71,0.00056712,120]
[312507111,1705935275113,-500.0,0.00056712,120]
[312507112,1705935275148,-500.0,0.00056712,120]
[312507113,1705935275186,-500.0,0.00056712,120]
[312507114,1705935275223,-500.0,0.00056712,120]
[312507115,1705935275260,-500.0,0.00056712,120]
[312507116,1705935275297,-749.91,0.00056712,120]
[312507117,1705935275333,-500.0,0.00056712,120]
[312507118,1705935275370,-500.0,0.00056712,120]
[312507119,1705935275405,-500.0,0.00056712,120]
[312507120,1705935275444,-500.0,0.00056712,120]
[312507121,1705935275480,-706.74,0.00056712,120]
[312507122,1705935275518,-500.0,0.00056712,120]
[312507123,1705935275555,-500.0,0.00056712,120]
[312507124,1705935275590,-681.22,0.00056712,120]
[312507125,1705935275625,-302.29377093,0.00056712,120]
[312507126,1705935275661,-500.0,0.00056712,120]
[312507127,1705935275697,-520.16,0.00056712,120]
[312507128,1705935275732,-978.9,0.00056712,120]
[312507129,1705935275768,-1380.88,0.00056712,120]
[312507130,1705935275802,-570.7,0.00056712,120]
[312507131,1705935275837,-500.0,0.00056712,120]
[312507132,1705935275872,-1255.4,0.00056712,120]
[312507133,1705935275907,-500.0,0.00056712,120]
[312507134,1705935275944,-1221.5,0.00056712,120]
[312507135,1705935275980,-528.66844829,0.00056712,120]
[312507136,1705935276015,-500.0,0.00056712,120]
[312507137,1705935276049,-1447.81,0.00056712,120]
[312507138,1705935276084,-500.0,0.00056712,120]
[312507139,1705935276119,-2684.03,0.00056712,120]
[312507140,1705935276155,-500.0,0.00056712,120]
[312507141,1705935276195,-1726.87,0.00056712,120]
[312507143,1705935276234,-970.29,0.00056712,120]
[312507144,1705935276268,-709.57,0.00056712,120]
[312507145,1705935276302,-500.0,0.00056712,120]
[312507146,1705935276338,-556.49,0.00056712,120]
[312507147,1705935276375,-500.0,0.00056712,120]
[312507148,1705935276411,-1387.83,0.00056712,120]
[312507149,1705935276447,-717.18,0.00056712,120]
[312507150,1705935276482,-1397.88,0.00056712,120]
[312507151,1705935276518,-610.22,0.00056712,120]
[312507152,1705935276553,-1037.49,0.00056712,120]
[312507153,1705935276588,-937.59,0.00056712,120]
[312507154,1705935276621,-500.0,0.00056712,120]
[312507155,1705935276655,-510.67,0.00056712,120]
[312507156,1705935276690,-721.94,0.00056712,120]
[312507157,1705935276725,-500.0,0.00056712,120]
[312507158,1705935276760,-658.41,0.00056712,120]
[312507160,1705935276795,-500.0,0.00056712,120]
[312507161,1705935276831,-500.0,0.00056712,120]
[312507162,1705935276865,-370.93494877,0.00056712,120]
[312507163,1705935276899,-1324.43,0.00056712,120]
[312507164,1705935276935,-1074.78,0.00056712,120]
[312507165,1705935276973,-500.0,0.00056712,120]
[312507166,1705935277010,-854.08,0.00056712,120]
[312507167,1705935277046,-500.0,0.00056712,120]
[312507168,1705935277081,-669.07,0.00056712,120]
[312507169,1705935277116,-1043.64,0.00056712,120]
[312507170,1705935277153,-500.0,0.00056712,120]
[312507171,1705935277191,-1068.91,0.00056712,120]
[312507172,1705935277228,-1264.76,0.00056712,120]
[312507173,1705935277265,-537.28,0.00056712,120]
[312507174,1705935277301,-500.0,0.00056712,120]
[312507175,1705935277338,-738.6,0.00056712,120]
[312507176,1705935277378,-660.61,0.00056712,120]
[312507177,1705935277414,-500.0,0.00056712,120]
[312507178,1705935277450,-700.4,0.00056712,120]
[312507179,1705935277484,-500.0,0.00056712,120]
[312507180,1705935277517,-821.95,0.00056712,120]
[312507182,1705935277551,-648.78,0.00056712,120]
[312507183,1705935277584,-722.7,0.00056712,120]
[312507184,1705935277624,-500.0,0.00056712,120]
[312507185,1705935277658,-1066.38,0.00056712,120]
[312507186,1705935277691,-2325.98,0.00056712,120]
[312507187,1705935277724,-500.0,0.00056712,120]
[312507188,1705935277757,-500.0,0.00056712,120]
[312507189,1705935277790,-1073.56,0.00056712,120]
[312507190,1705935277823,-500.0,0.00056712,120]
[312507191,1705935277857,-972.0,0.00056712,120]
[312507192,1705935277889,-532.36,0.00056712,120]
[312507193,1705935277923,-500.0,0.00056712,120]
[312507194,1705935277963,-1793.95,0.00056712,120]
[312507195,1705935278000,-500.0,0.00056712,120]
[312507196,1705935278039,-500.0,0.00056712,120]
[312507197,1705935278077,-960.21,0.00056712,120]
[312507198,1705935278113,-500.0,0.00056712,120]
[312507199,1705935278149,-1245.11,0.00056712,120]
[312507201,1705935278187,-500.0,0.00056712,120]
[312507202,1705935278224,-500.0,0.00056712,120]
[312507203,1705935278262,-1202.84,0.00056712,120]
[312507205,1705935278298,-500.0,0.00056712,120]
[312507206,1705935278337,-674.26,0.00056712,120]
[312507207,1705935278376,-1089.12,0.00056712,120]
[312507208,1705935278416,-500.0,0.00056712,120]
[312507209,1705935278453,-1148.71,0.00056712,120]
[312507210,1705935278652,-1121.58,0.00056712,120]
[312507211,1705935278689,-782.17,0.00056712,120]
[312507212,1705935278723,-500.0,0.00056712,120]
[312507213,1705935278758,-500.0,0.00056712,120]
[312507214,1705935278791,-1269.81,0.00056712,120]
[312507215,1705935278824,-500.0,0.00056712,120]
[312507216,1705935278856,-1163.79,0.00056712,120]
[312507217,1705935278889,-755.55,0.00056712,120]
[312507218,1705935278923,-248.82114164,0.00056712,120]
[312507219,1705935278958,-590.73,0.00056712,120]
[312507220,1705935278991,-500.0,0.00056712,120]
[312507221,1705935279026,-653.94,0.00056712,120]
[312507222,1705935279060,-500.0,0.00056712,120]
[312507223,1705935279093,-1082.1,0.00056712,120]
[312507224,1705935279126,-1119.29,0.00056712,120]
[312507225,1705935279159,-884.87,0.00056712,120]
[312507226,1705935279192,-590.44,0.00056712,120]
[312507227,1705935279225,-1021.29,0.00056712,120]
[312507228,1705935279259,-500.0,0.00056712,120]
[312507229,1705935279293,-557.86,0.00056712,120]
[312507230,1705935279333,-500.0,0.00056712,120]
[312507231,1705935279371,-922.84,0.00056712,120]
[312507232,1705935279403,-854.16,0.00056712,120]
[312507233,1705935279437,-1360.93,0.00056712,120]
[312507234,1705935279471,-500.0,0.00056712,120]
[312507235,1705935279512,-612.83,0.00056712,120]
[312507236,1705935279546,-500.0,0.00056712,120]
[312507237,1705935279581,-763.7,0.00056712,120]
[312507238,1705935279613,-862.53,0.00056712,120]
[312507239,1705935279647,-709.99,0.00056712,120]
[312507240,1705935279682,-716.16,0.00056712,120]
[312507241,1705935279715,-743.65,0.00056712,120]
[312507242,1705935279750,-500.0,0.00056712,120]
[312507243,1705935279783,-500.0,0.00056712,120]
[312507244,1705935279820,-501.89,0.00056712,120]
[312507245,1705935279857,-765.86,0.00056712,120]
[312507246,1705935279891,-1960.91,0.00056712,120]
[312507247,1705935279924,-500.0,0.00056712,120]
[312507248,1705935279959,-864.85,0.00056712,120]
[312507249,1705935279994,-500.0,0.00056712,120]
[312507250,1705935280029,-895.93,0.00056712,120]
[312507251,1705935280061,-375.02,0.00056712,120]
[312507252,1705935280095,-652.75,0.00056712,120]
[312507253,1705935280128,-500.0,0.00056712,120]
[312507254,1705935280163,-1017.75,0.00056712,120]
[312507255,1705935280198,-718.71,0.00056712,120]
[312507256,1705935280231,-500.0,0.00056712,120]
[312507257,1705935280263,-474.95067753,0.00056712,120]
[312507258,1705935280297,-950.95,0.00056712,120]
[312507259,1705935280333,-1166.26,0.00056712,120]
[312507261,1705935280367,-1163.88,0.00056712,120]
[312507262,1705935280403,-706.58,0.00056712,120]
[312507263,1705935280439,-500.0,0.00056712,120]
[312507264,1705935280471,-500.0,0.00056712,120]
[312507265,1705935280507,-775.78,0.00056712,120]
[312507266,1705935280540,-500.0,0.00056712,120]
[312507267,1705935280573,-1841.93,0.00056712,120]
[312507268,1705935280605,-500.0,0.00056712,120]
[312507269,1705935280637,-604.25,0.00056712,120]
[312507270,1705935280670,-500.0,0.00056712,120]
[312507271,1705935280703,-744.8,0.00056712,120]
[312507272,1705935280735,-500.0,0.00056712,120]
[312507273,1705935280767,-803.23,0.00056712,120]
[312507275,1705935280799,-500.0,0.00056712,120]
[312507276,1705935280833,-1391.49,0.00056712,120]
[312507277,1705935280867,-500.0,0.00056712,120]
[312507278,1705935280901,-743.79,0.00056712,120]
[312507279,1705935280937,-758.95,0.00056712,120]
[312507280,1705935280972,-805.81,0.00056712,120]
[312507281,1705935281006,-225.09486899,0.00056712,120]
[312507282,1705935281039,-575.63,0.00056712,120]
[312507283,1705935281073,-500.0,0.00056712,120]
[312507284,1705935281106,-344.04408848,0.00056712,120]
[312507285,1705935281139,-869.66,0.00056712,120]
[312507286,1705935281174,-500.0,0.00056712,120]
[312507287,1705935281208,-188.96894558,0.00056712,120]
[312507288,1705935281242,-907.16,0.00056712,120]
[312507289,1705935281276,-619.23,0.00056712,120]
[312507290,1705935281310,-789.34,0.00056712,120]
[312507291,1705935281347,-1452.65,0.00056712,120]
[312507293,1705935281382,-696.15,0.00056712,120]
[312507294,1705935281417,-630.80347558,0.00056712,120]
[312507295,1705935281453,-593.79,0.00056712,120]
[312507296,1705935281488,-500.0,0.00056712,120]
[312507297,1705935281522,-1334.13,0.00056712,120]
[312507298,1705935281557,-500.0,0.00056712,120]
[312507299,1705935281591,-836.62,0.00056712,120]
[312507300,1705935281628,-837.72,0.00056712,120]
[312507301,1705935281665,-623.18,0.00056712,120]
[312507302,1705935281699,-1323.21,0.00056712,120]
[312507303,1705935281732,-500.0,0.00056712,120]
[312507304,1705935281765,-557.03,0.00056712,120]
[312507305,1705935281800,-609.57,0.00056712,120]
[312507306,1705935281833,-951.02,0.00056712,120]
[312507307,1705935281865,-1742.89,0.00056712,120]
[312507308,1705935281899,-500.0,0.00056712,120]
[312507309,1705935281935,-500.0,0.00056712,120]
[312507310,1705935281971,-762.89,0.00056712,120]
[312507311,1705935282005,-650.96,0.00056712,120]
[312507312,1705935282039,-500.0,0.00056712,120]
[312507313,1705935282073,-659.39,0.00056712,120]
[312507314,1705935282107,-500.0,0.00056712,120]
[312507315,1705935282143,-500.0,0.00056712,120]
[312507316,1705935282176,-500.0,0.00056712,120]
[312507317,1705935282372,-651.75,0.00056712,120]
[312507318,1705935282408,-500.0,0.00056712,120]
[312507319,1705935282442,-500.0,0.00056712,120]
[312507320,1705935282475,-852.44,0.00056712,120]
[312507321,1705935282508,-500.0,0.00056712,120]
[312507322,1705935282541,-500.0,0.00056712,120]
[312507323,1705935282575,-500.0,0.00056712,120]
[312507324,1705935282608,-1607.72,0.00056712,120]
[312507325,1705935282644,-1788.51,0.00056712,120]
[312507326,1705935282677,-500.0,0.00056712,120]
[312507327,1705935282710,-669.85,0.00056712,120]
[312507328,1705935282743,-744.04,0.00056712,120]
[312507329,1705935282777,-500.0,0.00056712,120]
[312507330,1705935282811,-645.14,0.00056712,120]
[312507331,1705935282843,-608.8,0.00056712,120]
[312507332,1705935282876,-500.0,0.00056712,120]
[312507334,1705935282909,-702.16,0.00056712,120]
[312507335,1705935282942,-300.0,0.00056712,120]
[312507336,1705935282976,-559.87,0.00056712,120]
[312507337,1705935283012,-500.0,0.00056712,120]
[312507339,1705935283045,-1326.85,0.00056712,120]
[312507340,1705935283078,-283.8368673,0.00056712,120]
[312507341,1705935283115,-1404.36,0.00056712,120]
[312507342,1705935283150,-1490.02,0.00056712,120]
[312507343,1705935283185,-500.0,0.00056712,120]
[312507344,1705935283218,-500.0,0.00056712,120]
[312507345,1705935283251,-500.0,0.00056712,120]
[312507346,1705935283284,-1273.58,0.00056712,120]
[312507347,1705935283317,-500.0,0.00056712,120]
[312507348,1705935283350,-631.43262986,0.00056712,120]
[312507349,1705935283382,-1577.88,0.00056712,120]
[312507350,1705935283416,-850.44,0.00056712,120]
[312507351,1705935283452,-500.0,0.00056712,120]
[312507352,1705935283484,-665.34,0.00056712,120]
[312507353,1705935283517,-500.0,0.00056712,120]
[312507354,1705935283549,-836.88,0.00056712,120]
[312507355,1705935283583,-500.0,0.00056712,120]
[312507356,1705935283617,-1144.66,0.00056712,120]
[312507357,1705935283649,-500.0,0.00056712,120]
[312507358,1705935283684,-500.0,0.00056712,120]
[312507359,1705935283721,-649.5,0.00056712,120]
[312507360,1705935283758,-1273.46,0.00056712,120]
[312507362,1705935283794,-500.0,0.00056712,120]
[312507363,1705935283828,-500.0,0.00056712,120]
[312507364,1705935283862,-1047.97,0.00056712,120]
[312507365,1705935283894,-168.73250655,0.00056712,120]
[312507366,1705935283928,-500.0,0.00056712,120]
[312507367,1705935283963,-500.0,0.00056712,120]
[312507368,1705935283997,-600.2,0.00056712,120]
[312507369,1705935284031,-754.61,0.00056712,120]
[312507370,1705935284064,-500.0,0.00056712,120]
[312507371,1705935284098,-852.62,0.00056712,120]
[312507372,1705935284132,-500.0,0.00056712,120]
[312507373,1705935284166,-1099.97,0.00056712,120]
[312507375,1705935284201,-500.0,0.00056712,120]
[312507376,1705935284234,-500.0,0.00056712,120]
[312507377,1705935284267,-500.0,0.00056712,120]
[312507378,1705935284301,-500.0,0.00056712,120]
[312507379,1705935284338,-836.94,0.00056712,120]
[312507380,1705935284373,-857.36,0.00056712,120]
[312507381,1705935284406,-500.0,0.00056712,120]
[312507382,1705935284440,-597.17,0.00056712,120]
[312507383,1705935284474,-1527.68,0.00056712,120]
[312507384,1705935284507,-806.43,0.00056712,120]
[312507385,1705935284539,-2110.23,0.00056712,120]
[312507386,1705935284570,-500.0,0.00056712,120]
[312507387,1705935284603,-1844.2,0.00056712,120]
[312507388,1705935284635,-500.0,0.00056712,120]
[312507389,1705935284668,-500.0,0.00056712,120]
[312507390,1705935284705,-552.99,0.00056712,120]
[312507391,1705935284739,-500.0,0.00056712,120]
[312507392,1705935284771,-1034.47,0.00056712,120]
[312507393,1705935284803,-1707.75,0.00056712,120]
[312507394,1705935284839,-666.0,0.00056712,120]
[312507395,1705935284874,-500.0,0.00056712,120]
[312507396,1705935284908,-1129.13,0.00056712,120]
[312507397,1705935284942,-599.85,0.00056712,120]
[312507398,1705935284980,-500.0,0.00056712,120]
[312507399,1705935285016,-932.99,0.00056712,120]
[312507400,1705935285052,-2637.9,0.00056712,120]
[312507401,1705935285085,-1394.47,0.00056712,120]
[312507402,1705935285119,-500.0,0.00056712,120]
[312507403,1705935285153,-756.66,0.00056712,120]
[312507404,1705935285187,-500.0,0.00056712,120]
[312507405,1705935285222,-591.22,0.00056712,120]
[312507406,1705935285255,-1651.7,0.00056712,120]
[312507407,1705935285289,-970.35,0.00056712,120]
[312507408,1705935285323,-500.0,0.00056712,120]
[312507409,1705935285355,-506.16,0.00056712,120]
[312507410,1705935285389,-920.91,0.00056712,120]
[312507411,1705935285422,-500.0,0.00056712,120]
[312507412,1705935285458,-752.54,0.00056712,120]
[312507413,1705935285492,-653.54,0.00056712,120]
[312507414,1705935285526,-500.0,0.00056712,120]
[312507415,1705935285561,-1751.16,0.00056712,120]
[312507416,1705935285594,-652.01,0.00056712,120]
[312507417,1705935285628,-650.78,0.00056712,120]
[312507418,1705935285661,-631.92,0.00056712,120]
[312507419,1705935285694,-752.76,0.00056712,120]
[312507420,1705935285728,-500.0,0.00056712,120]
[312507422,1705935285761,-2270.34,0.00056712,120]
[312507423,1705935285795,-1786.0,0.00056712,120]
[312507424,1705935285828,-500.0,0.00056712,120]
[312507425,1705935285862,-1361.82,0.00056712,120]
[312507426,1705935286060,-3797.03,0.00056712,120]
[312507427,1705935286097,-1781.02,0.00056712,120]
[312507428,1705935286132,-1364.57,0.00056712,120]
[312507429,1705935286166,-1756.9,0.00056712,120]
[312507430,1705935286199,-790.71,0.00056712,120]
[312507431,1705935286247,-598.0,0.00056712,120]
[312507432,1705935286284,-609.8,0.00056712,120]
[312507433,1705935286319,-543.53,0.00056712,120]
[312507434,1705935286355,-761.51,0.00056712,120]
[312507435,1705935286392,-1909.96,0.00056712,120]
[312507436,1705935286427,-1240.73,0.00056712,120]
[312507437,1705935286463,-12125.73,0.00056712,120]
[312507438,1705935286496,-526.33674693,0.00056712,120]
[312507439,1705935286531,-2651.29,0.00056712,120]
[312507441,1705935286568,-500.0,0.00056712,120]
[312507442,1705935286603,-1183.91,0.00056712,120]
[312507443,1705935286638,-1284.7,0.00056712,120]
[312507445,1705935286672,-500.0,0.00056712,120]
[312507447,1705935286707,-5137.25,0.00056712,120]
[312507448,1705935286741,-500.0,0.00056712,120]
[312507449,1705935286775,-1103.44,0.00056712,120]
[312507450,1705935286809,-500.0,0.00056712,120]
[312507451,1705935286844,-500.0,0.00056712,120]
[312507452,1705935286878,-500.0,0.00056712,120]
[312507453,1705935286913,-500.0,0.00056712,120]
[312507454,1705935286948,-2169.34,0.00056712,120]
[312507455,1705935286983,-12713.95,0.00056712,120]
[312507456,1705935287024,-1882.98,0.00056712,120]
[312507457,1705935287060,-967.39,0.00056712,120]
[312507458,1705935287095,-1657.15,0.00056712,120]
[312507459,1705935287131,-500.0,0.00056712,120]
[312507460,1705935287169,-943.25,0.00056712,120]
[312507461,1705935287205,-1729.69,0.00056712,120]
[312507462,1705935287241,-500.0,0.00056712,120]
[312507463,1705935287275,-569.65,0.00056712,120]
[312507464,1705935287309,-606.66,0.00056712,120]
[312507465,1705935287346,-2125.62,0.00056712,120]
[312507466,1705935287381,-1419.55,0.00056712,120]
[312507467,1705935287416,-1565.88,0.00056712,120]
[312507468,1705935287450,-689.11,0.00056712,120]
[312507469,1705935287484,-1689.91,0.00056712,120]
[312507470,1705935287517,-1921.07,0.00056712,120]
[312507471,1705935287552,-500.0,0.00056712,120]
[312507472,1705935287588,-2015.32,0.00056712,120]
[312507473,1705935287622,-700.71,0.00056712,120]
[312507474,1705935287656,-500.0,0.00056712,120]
[312507475,1705935287690,-500.0,0.00056712,120]
[312507476,1705935287723,-1539.91,0.00056712,120]
[312507477,1705935287757,-1927.03,0.00056712,120]
[312507478,1705935287793,-1314.85,0.00056712,120]
[312507479,1705935287829,-1686.46,0.00056712,120]
[312507480,1705935287870,-500.0,0.00056712,120]
[312507481,1705935287907,-677.55,0.00056712,120]
[312507482,1705935287944,-1985.74,0.00056712,120]
[312507483,1705935287979,-500.0,0.00056712,120]
[312507484,1705935288014,-550.06,0.00056712,120]
[312507485,1705935288049,-1259.3,0.00056712,120]
[312507486,1705935288084,-712.03,0.00056712,120]
[312507487,1705935288120,-736.61,0.00056712,120]
[312507488,1705935288157,-4762.26,0.00056712,120]
[312507489,1705935288196,-2461.8,0.00056712,120]
[312507490,1705935288235,-1880.63,0.00056712,120]
[312507492,1705935288278,-1557.26,0.00056712,120]
[312507493,1705935288320,-375.0,0.00056712,120]
[312507494,1705935288361,-1379.69,0.00056712,120]
[312507495,1705935288403,-793.99,0.00056712,120]
[312507496,1705935288448,-2604.87,0.00056712,120]
[312507497,1705935288490,-500.0,0.00056712,120]
[312507498,1705935288531,-932.81,0.00056712,120]
[312507499,1705935288569,-500.0,0.00056712,120]
[312507500,1705935288605,-500.0,0.00056712,120]
[312507501,1705935288640,-3105.23,0.00056712,120]
[312507502,1705935288674,-532.71214388,0.00056712,120]
[312507503,1705935288710,-500.0,0.00056712,120]
[312507504,1705935288750,-1967.28,0.00056712,120]
[312507505,1705935288784,-504.66,0.00056712,120]
[312507506,1705935288819,-2108.57,0.00056712,120]
[312507507,1705935288856,-5534.47,0.00056712,120]
[312507508,1705935288897,-2822.45,0.00056712,120]
[312507509,1705935288942,-1147.57,0.00056712,120]
[312507510,1705935288984,-1151.76,0.00056712,120]
[312507511,1705935289025,-500.0,0.00056712,120]
[312507512,1705935289074,-504.79,0.00056712,120]
[312507513,1705935289196,-828.94,0.00056712,120]
[312507514,1705935289236,-1921.76,0.00056712,120]
[312507515,1705935289272,-479.33971434,0.00056712,120]
[312507516,1705935289310,-500.0,0.00056712,120]
[312507517,1705935289347,-517.22,0.00056712,120]
[312507518,1705935289385,-836.23,0.00056712,120]
[312507519,1705935289422,-859.23,0.00056712,120]
[312507520,1705935289460,-2987.07,0.00056712,120]
[312507521,1705935289495,-500.0,0.00056712,120]
[312507522,1705935289532,-1485.29,0.00056712,120]
[312507523,1705935289570,-1113.39,0.00056712,120]
[312507524,1705935289606,-699.12,0.00056712,120]
[312507525,1705935289640,-500.0,0.00056712,120]
[312507526,1705935289674,-1325.84,0.00056712,120]
[312507527,1705935289709,-610.32,0.00056712,120]
[312507528,1705935289743,-500.0,0.00056712,120]
[312507530,1705935289775,-500.0,0.00056712,120]
[312507532,1705935289808,-977.5,0.00056712,120]
[312507533,1705935289841,-1197.96,0.00056712,120]
[312507534,1705935289874,-1447.9,0.00056712,120]
[312507536,1705935290138,-680.84,0.00056712,120]
[312507537,1705935290177,-768.63,0.00056712,120]
[312507538,1705935290218,-6620.65,0.00056712,120]
[312507539,1705935290256,-4857.5,0.00056712,120]
[312507540,1705935290293,-2086.5,0.00056712,120]
[312507541,1705935290329,-500.0,0.00056712,120]
[312507542,1705935290365,-500.0,0.00056712,120]
[312507543,1705935290402,-1199.49,0.00056712,120]
[312507544,1705935290439,-2054.67,0.00056712,120]
[312507545,1705935290474,-500.0,0.00056712,120]
[312507546,1705935290508,-500.0,0.00056712,120]
[312507547,1705935290542,-500.0,0.00056712,120]
[312507548,1705935290576,-519.19,0.00056712,120]
[312507549,1705935290611,-886.41,0.00056712,120]
[312507550,1705935290646,-500.0,0.00056712,120]
[312507551,1705935290681,-500.0,0.00056712,120]
[312507552,1705935290724,-10248.86,0.00056712,120]
[312507553,1705935290765,-500.0,0.00056712,120]
[312507554,1705935290813,-1103.75,0.00056712,120]
[312507555,1705935290864,-500.0,0.00056712,120]
[312507557,1705935290907,-751.87,0.00056712,120]
[312507558,1705935290948,-3237.18,0.00056712,120]
[312507559,1705935290989,-2009.92,0.00056712,120]
[312507560,1705935291029,-789.59,0.00056712,120]
[312507561,1705935291069,-685.82,0.00056712,120]
[312507562,1705935291107,-500.0,0.00056712,120]
[312507563,1705935291144,-4264.33,0.00056712,120]
[312507564,1705935291181,-1535.34,0.00056712,120]
[312507565,1705935291221,-809.7,0.00056712,120]
[312507566,1705935291257,-1697.89,0.00056712,120]
[312507567,1705935291293,-1154.09,0.00056712,120]
[312507568,1705935291331,-1596.19,0.00056712,120]
[312507569,1705935291375,-1154.51,0.00056712,120]
[312507570,1705935291414,-964.24,0.00056712,120]
[312507571,1705935291451,-1595.7,0.00056712,120]
[312507572,1705935291488,-500.0,0.00056712,120]
[312507573,1705935291526,-500.0,0.00056712,120]
[312507574,1705935291563,-2914.21,0.00056712,120]
[312507575,1705935291600,-1552.88,0.00056712,120]
[312507576,1705935291636,-608.04,0.00056712,120]
[312507577,1705935291672,-700.43,0.00056712,120]